bitfinex/quotes_SOLUSD_20220228
["timestamp","ask_amount","ask_price","bid_price","bid_amount"]
[1646064825958,1.42573288,95.434,95.281,167.25]
[1646064826162,53.56751536,95.435,95.282,2.61606588]
[1646064826358,53.56751536,95.435,95.283,167.25]
[1646064826558,53.56751536,95.435,95.284,2.8984698]
[1646064826957,53.56751536,95.435,95.285,167.25]
[1646064827160,53.56751536,95.435,95.286,3.08284944]
[1646064827358,53.56751536,95.435,95.301,167.25]
[1646064827559,53.56751536,95.435,95.302,2.26912471]
[1646064827960,53.56751536,95.435,95.303,2.74678921]
[1646064829863,1.58546026,95.434,95.303,62.65]
[1646064830063,53.56751536,95.435,95.313,169.77871389]
[1646064830262,53.56751536,95.435,95.314,2.28384766]
[1646064830462,53.56751536,95.435,95.291,2.56238032]
[1646064830663,54.99324824,95.435,95.291,3.00979821]
[1646064830868,54.99324824,95.435,95.291,167.25]
[1646064831066,54.99324824,95.435,95.292,2.36243946]
[1646064831466,1.417783,95.434,95.292,2.36243946]
[1646064831672,1.42573288,95.432,95.292,2.36243946]
[1646064832067,1.42573288,95.429,95.292,2.36243946]
[1646064832468,1.42573288,95.426,95.292,2.36243946]
[1646064832670,1.42573288,95.425,95.292,2.36243946]
[1646064832869,1.42573288,95.433,95.292,2.36243946]
[1646064833069,1.42573288,95.434,95.301,62.65]
[1646064833269,1.42573288,95.434,95.303,167.25]
[1646064833469,54.99324824,95.435,95.304,2.37950395]
[1646064833870,53.56751536,95.435,95.304,2.37950395]
[1646064834072,54.99324824,95.435,95.304,2.37950395]
[1646064834271,54.99324824,95.435,95.309,62.65]
[1646064834470,1.78141556,95.434,95.31,2.34472251]
[1646064834673,53.56751536,95.435,95.292,2.88911136]
[1646064835070,53.56751536,95.435,95.293,62.65]
[1646064835271,53.56751536,95.435,95.302,104.6]
[1646064835470,53.56751536,95.435,95.311,62.65]
[1646064835671,53.56751536,95.435,95.324,104.6]
[1646064835872,53.56751536,95.435,95.339,62.65]
[1646064836071,53.56751536,95.435,95.34,2.66733355]
[1646064836471,53.56751536,95.435,95.343,167.25]
[1646064836674,53.56751536,95.435,95.344,2.85098509]
[1646064836881,53.56751536,95.435,95.345,62.65]
[1646064837081,53.56751536,95.435,95.345,167.25]
[1646064837373,53.56751536,95.435,95.346,3.02095074]
[1646064837575,53.56751536,95.435,95.328,2.74678921]
[1646064837779,62.06751536,95.435,95.314,2.40421589]
[1646064837973,62.06751536,95.435,95.314,65.05421589]
[1646064837974,57.3978097,95.434,95.314,65.05421589]
[1646064838289,9.8768097,95.433,95.315,2.45410194]
[1646064838689,19.7536194,95.433,95.291,104.6]
[1646064838891,12.65,95.43,95.294,62.65]
[1646064839089,12.65,95.43,95.295,2.32107016]
[1646064839293,24.63154466,95.429,95.244,2.74678921]
[1646064839493,1.42573288,95.425,95.229,46.881]
[1646064839791,45.28590065,95.409,95.253,65.52353529]
[1646064839990,12.65,95.4,95.255,62.65]
[1646064840189,12.65,95.4,95.262,104.6]
[1646064840393,22.9639,95.399,95.266,104.6]
[1646064840689,1.51716806,95.398,95.266,3.09395584]
[1646064840891,1.67832487,95.397,95.266,3.09395584]
[1646064841090,16.46948245,95.397,95.266,3.09395584]
[1646064841292,21.5134665,95.396,95.266,3.09395584]
[1646064841494,1.5727039,95.395,95.255,3.08714121]
[1646064841692,12.65,95.39,95.255,3.08714121]
[1646064842292,14.79115758,95.389,95.255,3.08714121]
[1646064843594,14.79115758,95.389,95.255,65.73714121]
[1646064843795,14.79115758,95.389,95.256,2.50171258]
[1646064844695,14.79115758,95.389,95.256,65.15171258]
[1646064844896,14.79115758,95.389,95.257,2.42290056]
[1646064845897,14.79115758,95.389,95.257,65.07290056]
[1646064846097,14.79115758,95.389,95.262,104.6]
[1646064846299,14.79115758,95.389,95.263,3.10042225]
[1646064847199,12.65,95.39,95.271,62.65]
[1646064847398,12.65,95.39,95.275,62.65]
[1646064847599,1.47027954,95.389,95.276,2.85894636]
[1646064847801,24.51747954,95.389,95.254,2.73941574]
[1646064848000,1.55175895,95.388,95.254,2.73941574]
[1646064848202,21.34180097,95.388,95.254,2.73941574]
[1646064848403,1.47002118,95.387,95.254,2.73941574]
[1646064848602,26.13798846,95.387,95.254,2.73941574]
[1646064848800,11.68455322,95.386,95.212,3.02558274]
[1646064849001,17.52455322,95.386,95.212,3.02558274]
[1646064849202,1.42573288,95.38,95.212,3.02558274]
[1646064849402,1.42573288,95.38,95.215,62.65]
[1646064849403,12.65,95.37,95.215,62.65]
[1646064849606,24.63461526,95.369,95.225,62.65]
[1646064849802,1.59706328,95.368,95.226,2.68719671]
[1646064850206,23.0137,95.369,95.231,62.65]
[1646064850403,23.0137,95.369,95.232,2.84569299]
[1646064850605,23.0137,95.369,95.248,104.6]
[1646064850804,23.0137,95.369,95.241,2.54092132]
[1646064850805,23.0137,95.369,95.263,62.65]
[1646064851005,23.0137,95.369,95.271,62.65]
[1646064851204,23.0137,95.369,95.272,107.03851389]
[1646064851403,23.0137,95.369,95.273,2.28241862]
[1646064853708,23.0137,95.369,95.28,104.6]
[1646064853910,23.0137,95.369,95.295,62.65]
[1646064854110,23.0137,95.369,95.302,104.6]
[1646064854414,49.49369781,95.379,95.303,2.59609482]
[1646064855611,49.49369781,95.379,95.301,2.43971306]
[1646064855815,49.49369781,95.379,95.301,2.39296932]
[1646064856010,49.49369781,95.379,95.3,12.65]
[1646064856210,49.49369781,95.379,95.301,62.65]
[1646064856410,49.49369781,95.379,95.302,2.56110684]
[1646064856811,49.49369781,95.379,95.302,107.16110684]
[1646064857110,49.49369781,95.379,95.303,2.6941926]
[1646064857510,49.49369781,95.379,95.301,2.83750176]
[1646064857710,49.49369781,95.379,95.3,12.65]
[1646064857912,49.49369781,95.379,95.301,65.52006912]
[1646064858210,49.49369781,95.379,95.302,2.65648601]
[1646064858414,49.49369781,95.379,95.301,3.12206624]
[1646064858610,49.49369781,95.379,95.3,12.65]
[1646064859210,49.49369781,95.379,95.301,169.74918692]
[1646064859411,49.49369781,95.379,95.302,2.3023244]
[1646064860614,1.42573288,95.425,95.303,2.74678921]
[1646064860815,1.42573288,95.435,95.303,17.02512352]
[1646064861014,45.5307,95.451,95.305,2.44309929]
[1646064861214,45.5307,95.451,95.321,167.25]
[1646064861414,45.5307,95.451,95.322,2.79369119]
[1646064861714,52.28832685,95.45,95.323,167.25]
[1646064861913,52.28832685,95.45,95.324,2.33403575]
[1646064862316,52.28832685,95.45,95.325,2.74678921]
[1646064862515,52.28832685,95.45,95.331,167.25]
[1646064862714,52.28832685,95.45,95.332,2.43282936]
[1646064862914,52.28832685,95.45,95.332,5.17961857]
[1646064863115,52.28832685,95.45,95.333,2.74678921]
[1646064863917,52.28832685,95.45,95.336,2.55125932]
[1646064864119,52.28832685,95.45,95.351,167.25]
[1646064864319,52.28832685,95.45,95.35,12.65]
[1646064864320,52.28832685,95.45,95.352,3.09639241]
[1646064864518,52.28832685,95.45,95.351,2.55447562]
[1646064864719,52.28832685,95.45,95.35,12.65]
[1646064864929,52.28832685,95.45,95.353,2.74678921]
[1646064865321,52.28832685,95.45,95.361,62.65]
[1646064865520,52.28832685,95.45,95.363,62.65]
[1646064865721,52.28832685,95.45,95.364,2.87409621]
[1646064866020,52.28832685,95.45,95.353,2.74678921]
[1646064866220,52.28832685,95.45,95.335,2.74678921]
[1646064867021,49.0433,95.449,95.333,2.3046703]
[1646064867222,49.0433,95.449,95.311,2.91075848]
[1646064867223,1.41817589,95.448,95.311,2.91075848]
[1646064867623,6.88391478,95.447,95.285,3.04393115]
[1646064867825,1.42573288,95.44,95.285,3.04393115]
[1646064868025,12.65,95.43,95.285,3.04393115]
[1646064868225,69.90078014,95.429,95.285,3.04393115]
[1646064868424,1.40990281,95.428,95.285,65.69393115]
[1646064868626,1.40990281,95.428,95.284,24.0172]
[1646064868627,1.40990281,95.428,95.286,2.50455876]
[1646064868924,1.40990281,95.428,95.271,2.59974755]
[1646064869624,1.40990281,95.428,95.272,2.58013601]
[1646064870624,1.40990281,95.428,95.273,62.65]
[1646064870826,1.40990281,95.428,95.27,90.7616]
[1646064870827,1.40990281,95.428,95.281,62.65]
[1646064871026,1.40990281,95.428,95.282,2.35089832]
[1646064871825,1.40990281,95.428,95.285,62.65]
[1646064872047,1.40990281,95.428,95.286,2.78363101]
[1646064872847,1.40990281,95.428,95.273,62.65]
[1646064873047,1.40990281,95.428,95.275,62.65]
[1646064873247,1.40990281,95.428,95.281,62.65]
[1646064873451,1.40990281,95.428,95.282,2.91407598]
[1646064873646,1.40990281,95.428,95.271,2.89339396]
[1646064873847,1.40990281,95.428,95.271,170.14339396]
[1646064874047,24.69608177,95.427,95.272,3.07307335]
[1646064874249,1.74998984,95.426,95.272,3.07307335]
[1646064874648,9.82058072,95.425,95.272,3.07307335]
[1646064874855,12.65,95.41,95.272,3.07307335]
[1646064875052,239.43589113,95.409,95.241,2.40585512]
[1646064875257,1.42573288,95.4,95.231,2.99589869]
[1646064875459,1.42573288,95.385,95.231,2.99589869]
[1646064875653,12.65,95.38,95.231,2.99589869]
[1646064875853,1.48988372,95.379,95.232,104.6]
[1646064876051,1.48988372,95.379,95.233,2.5084098]
[1646064876249,19.50986571,95.379,95.233,2.5084098]
[1646064876450,38.72158256,95.378,95.233,2.5084098]
[1646064876654,38.72158256,95.378,95.148,15.5483]
[1646064876655,158.15,95.37,95.148,15.5483]
[1646064876854,158.15,95.35,95.149,2.566041]
[1646064877054,14.07573288,95.36,95.14,2.83905498]
[1646064877055,1.42573288,95.334,95.14,2.83905498]
[1646064877253,1.42573288,95.32,95.14,2.83905498]
[1646064877451,12.65,95.32,95.112,2.63067166]
[1646064877651,25.2841491,95.319,95.101,2.64519095]
[1646064877854,55.62012899,95.318,95.113,16.54118779]
[1646064878051,1.71344948,95.317,95.114,2.62410544]
[1646064878451,17.4609571,95.316,95.103,2.60134318]
[1646064878652,1.62012332,95.315,95.115,16.54118779]
[1646064878852,12.65,95.3,95.116,2.4421056]
[1646064879053,132.59606849,95.299,95.116,2.4421056]
[1646064879252,1.75016591,95.298,95.117,6.0]
[1646064879453,1.75016591,95.298,95.117,22.54118779]
[1646064879656,37.278949,95.297,95.118,2.32338448]
[1646064879856,1.36765258,95.296,95.118,2.32338448]
[1646064880054,1.36765258,95.296,95.06,112.7]
[1646064880055,158.15,95.29,95.1,2.53535]
[1646064880255,12.65,95.28,95.094,2.27098766]
[1646064880456,73.20923541,95.279,95.094,2.27098766]
[1646064880656,1.76139222,95.278,95.094,2.27098766]
[1646064880854,36.88935965,95.278,95.095,16.5391174]
[1646064881056,1.72753909,95.277,95.096,3.11697132]
[1646064881362,1.72753909,95.277,95.105,62.65]
[1646064881554,1.72753909,95.277,95.106,3.00565965]
[1646064881754,25.42292164,95.277,95.106,3.00565965]
[1646064881956,1.56512531,95.276,95.106,3.00565965]
[1646064882156,1.56512531,95.276,95.107,47.4104]
[1646064882358,28.30499682,95.277,95.108,65.05955231]
[1646064882558,17.4609571,95.276,95.109,2.85194058]
[1646064882760,71.82554343,95.279,95.113,167.25]
[1646064882962,71.82554343,95.279,95.114,3.01334301]
[1646064883361,28.30499682,95.278,95.108,3.07802074]
[1646064883759,17.69983127,95.277,95.108,3.07802074]
[1646064884162,28.30499682,95.276,95.108,3.07802074]
[1646064884564,28.30499682,95.276,95.107,15.7843]
[1646064884761,17.69983127,95.275,95.097,6.0]
[1646064885160,28.30499682,95.274,95.097,6.0]
[1646064885361,12.65,95.26,95.097,21.5948]
[1646064885564,48.0377,95.259,95.097,21.5948]
[1646064885762,51.08872173,95.258,95.097,21.5948]
[1646064885964,79.39371855,95.258,95.097,21.5948]
[1646064886163,24.4406,95.257,95.097,21.5948]
[1646064886362,52.74559682,95.257,95.097,21.5948]
[1646064886963,28.30499682,95.256,95.097,21.5948]
[1646064887364,28.30499682,95.256,95.098,62.65]
[1646064889966,17.69983127,95.255,95.098,62.65]
[1646064890166,12.65,95.24,95.098,62.65]
[1646064890369,70.9145734,95.239,95.098,62.65]
[1646064890768,70.9145734,95.239,95.1,62.65]
[1646064890968,70.9145734,95.239,95.101,167.25]
[1646064892069,48.1921734,95.239,95.101,167.25]
[1646064892272,46.7891,95.278,95.103,167.25]
[1646064892470,46.7891,95.278,95.111,167.25]
[1646064892670,46.7891,95.278,95.113,167.25]
[1646064892870,46.7891,95.278,95.115,167.25]
[1646064893273,58.12386434,95.277,95.117,167.25]
[1646064893471,58.12386434,95.277,95.13,12.65]
[1646064893673,58.12386434,95.277,95.131,167.25]
[1646064894073,58.12386434,95.277,95.131,193.82866249]
[1646064894273,58.12386434,95.277,95.132,26.57866249]
[1646064894773,58.12386434,95.277,95.132,2.74678921]
[1646064895875,58.12386434,95.277,95.121,62.65]
[1646064896075,58.12386434,95.277,95.122,2.74678921]
[1646064896474,58.12386434,95.277,95.122,107.34678921]
[1646064896675,58.12386434,95.277,95.123,23.83187328]
[1646064896874,58.12386434,95.277,95.114,23.0379]
[1646064897076,66.37386434,95.277,95.114,23.0379]
[1646064898881,58.12386434,95.277,95.114,23.0379]
[1646064899887,58.12386434,95.277,95.115,65.39678921]
[1646064900089,58.12386434,95.277,95.115,169.99678921]
[1646064900288,58.12386434,95.277,95.117,167.25]
[1646064900489,58.12386434,95.277,95.131,62.65]
[1646064900690,58.12386434,95.277,95.131,167.25]
[1646064900987,58.12386434,95.277,95.133,62.65]
[1646064901287,58.12386434,95.277,95.134,2.74678921]
[1646064901487,58.12386434,95.277,95.135,167.25]
[1646064901689,58.12386434,95.277,95.151,167.25]
[1646064902287,46.7891,95.278,95.152,2.74678921]
[1646064902487,47.3959,95.312,95.18,104.6]
[1646064902690,47.3959,95.312,95.18,167.25]
[1646064902887,47.3959,95.312,95.191,62.65]
[1646064903293,60.89840007,95.311,95.198,104.6]
[1646064903489,60.89840007,95.311,95.207,62.65]
[1646064903689,60.89840007,95.311,95.217,62.65]
[1646064903888,47.3959,95.312,95.219,62.65]
[1646064904090,23.4838,95.338,95.227,62.65]
[1646064904289,23.4838,95.338,95.242,104.6]
[1646064904487,23.4838,95.338,95.241,62.65]
[1646064904688,23.4838,95.338,95.242,104.6]
[1646064904889,46.56895046,95.337,95.241,62.65]
[1646064905488,46.56895046,95.337,95.25,104.6]
[1646064905688,46.56895046,95.337,95.252,104.6]
[1646064905908,46.56895046,95.337,95.257,62.65]
[1646064906308,77.8697,95.349,95.259,62.65]
[1646064906509,77.8697,95.349,95.265,62.65]
[1646064906707,77.8697,95.349,95.275,62.65]
[1646064906912,77.8697,95.349,95.26,2.74678921]
[1646064907108,77.8697,95.349,95.265,2.74678921]
[1646064907310,54.59553671,95.348,95.252,2.74678921]
[1646064907510,54.59553671,95.348,95.253,6.0]
[1646064908109,54.59553671,95.348,95.247,62.65]
[1646064908714,54.59553671,95.348,95.24,15.39678921]
[1646064908911,54.59553671,95.348,95.24,2.74678921]
[1646064909712,54.59553671,95.348,95.231,62.65]
[1646064909912,54.59553671,95.348,95.233,2.74678921]
[1646064910115,54.59553671,95.348,95.233,65.39678921]
[1646064910313,54.59553671,95.348,95.241,62.65]
[1646064910515,54.59553671,95.348,95.245,62.65]
[1646064910913,54.59553671,95.348,95.234,2.74678921]
[1646064911314,54.59553671,95.348,95.239,62.65]
[1646064911715,54.59553671,95.348,95.24,2.74678921]
[1646064911914,54.59553671,95.348,95.239,62.65]
[1646064912416,54.59553671,95.348,95.241,62.65]
[1646064913218,77.8697,95.349,95.242,2.74678921]
[1646064913417,77.8697,95.349,95.246,104.6]
[1646064913620,77.8697,95.349,95.261,62.65]
[1646064913816,77.8697,95.349,95.271,62.65]
[1646064914023,77.8697,95.349,95.285,62.65]
[1646064914219,77.8697,95.349,95.287,62.65]
[1646064914421,77.8697,95.349,95.288,2.51637991]
[1646064914817,77.8697,95.349,95.281,2.79238541]
[1646064915018,77.8697,95.349,95.281,3.0797906]
[1646064915217,77.8697,95.349,95.28,12.65]
[1646064915620,77.8697,95.349,95.273,2.43504974]
[1646064916424,77.8697,95.349,95.271,2.79565121]
[1646064916620,77.8697,95.349,95.271,2.39707246]
[1646064916820,77.8697,95.349,95.27,12.65]
[1646064917322,77.8697,95.349,95.262,2.68846919]
[1646064917722,77.8697,95.349,95.232,2.93911855]
[1646064917922,77.8697,95.349,95.227,2.4136992]
[1646064918521,77.8697,95.349,95.229,62.65]
[1646064918725,77.8697,95.349,95.232,2.55154661]
[1646064918923,77.8697,95.349,95.227,2.69530412]
[1646064919122,1.65336172,95.348,95.227,2.69530412]
[1646064919321,77.8697,95.349,95.22,2.33064696]
[1646064919522,77.8697,95.349,95.22,64.98064696]
[1646064919823,77.8697,95.349,95.221,2.46013362]
[1646064920021,77.8697,95.349,95.221,5.20692283]
[1646064920822,1.84828899,95.348,95.22,2.51207175]
[1646064921622,1.84828899,95.348,95.22,65.16207175]
[1646064921823,1.84828899,95.348,95.221,2.49409442]
[1646064922423,1.84828899,95.348,95.201,23.1028]
[1646064922623,1.55821661,95.346,95.201,23.1028]
[1646064923024,44.76004765,95.346,95.201,23.1028]
[1646064923226,1.71210768,95.345,95.201,23.1028]
[1646064923428,12.65,95.33,95.188,2.74678921]
[1646064923628,1.7446244,95.343,95.183,2.74678921]
[1646064923629,12.65,95.32,95.183,2.74678921]
[1646064923829,53.07854998,95.319,95.183,2.74678921]
[1646064924027,1.6369192,95.318,95.183,2.74678921]
[1646064924430,1.52541713,95.316,95.183,2.74678921]
[1646064925531,10.13541713,95.316,95.177,2.83330208]
[1646064925731,22.8581,95.315,95.177,2.83330208]
[1646064925932,12.65,95.3,95.177,2.83330208]
[1646064926132,26.16173478,95.299,95.177,2.83330208]
[1646064926335,1.71239707,95.298,95.178,2.74678921]
[1646064927737,8.70239707,95.298,95.178,2.74678921]
[1646064928340,8.70239707,95.298,95.161,102.03628921]
[1646064928538,23.45166349,95.297,95.161,2.74678921]
[1646064928739,1.68393486,95.296,95.135,2.74678921]
[1646064929238,43.12765003,95.295,95.135,2.74678921]
[1646064929438,1.56858249,95.294,95.135,2.74678921]
[1646064929640,12.65,95.28,95.135,2.74678921]
[1646064929942,1.62590689,95.278,95.135,2.74678921]
[1646064930541,47.4006,95.277,95.135,2.74678921]
[1646064930840,1.58164813,95.276,95.135,2.74678921]
[1646064931242,1.58164813,95.276,95.138,62.65]
[1646064931841,1.58164813,95.276,95.139,104.6]
[1646064932061,1.58164813,95.276,95.156,170.06096801]
[1646064932263,1.58164813,95.276,95.157,2.38690714]
[1646064932862,1.81829387,95.276,95.158,67.71798006]
[1646064933066,1.81829387,95.276,95.158,2.32119085]
[1646064933568,47.4006,95.277,95.159,2.74678921]
[1646064933963,47.4006,95.277,95.161,167.25]
[1646064934265,47.4006,95.277,95.163,62.65]
[1646064934665,47.4006,95.277,95.165,62.65]
[1646064934963,47.4006,95.277,95.166,5.12610732]
[1646064934964,1.85717011,95.276,95.166,5.12610732]
[1646064935163,1.85717011,95.276,95.166,2.74678921]
[1646064935364,1.85717011,95.276,95.139,25.89238921]
[1646064935565,1.85717011,95.276,95.139,23.1456]
[1646064936564,17.75387011,95.276,95.139,25.62710409]
[1646064936768,1.83653383,95.275,95.139,25.62710409]
[1646064937063,1.83653383,95.275,95.141,2.47309326]
[1646064937265,106.43653383,95.275,95.12,2.74678921]
[1646064937465,106.37022943,95.269,95.106,2.74678921]
[1646064937665,12.65,95.26,95.071,2.31743101]
[1646064937865,1.75163784,95.259,95.071,64.96743101]
[1646064938065,10.05469028,95.259,95.087,167.25]
[1646064938267,1.36471689,95.257,95.088,2.6636822]
[1646064938764,40.14261205,95.256,95.088,2.6636822]
[1646064938965,1.70019317,95.255,95.088,2.6636822]
[1646064939165,12.65,95.24,95.088,65.3136822]
[1646064939370,110.68354526,95.239,95.07,2.8880792]
[1646064939564,110.68354526,95.239,95.05,131.361]
[1646064939565,1.78302689,95.238,95.05,117.85437481]
[1646064939769,1.78302689,95.238,95.053,2.60211139]
[1646064939965,1.78302689,95.238,95.05,127.9509]
[1646064939966,10.79119695,95.237,95.05,127.9509]
[1646064940166,1.76545249,95.236,95.053,2.48636319]
[1646064940368,37.3541492,95.236,95.053,2.48636319]
[1646064940569,2.45444226,95.235,95.053,2.48636319]
[1646064940767,12.65,95.22,95.055,2.84292969]
[1646064940968,1.82088821,95.218,95.055,2.84292969]
[1646064941169,1.82088821,95.218,95.054,6.0]
[1646064941570,1.35931498,95.216,95.054,6.0]
[1646064941971,16.69094856,95.215,95.054,6.0]
[1646064942172,1.87263582,95.214,95.054,6.0]
[1646064942371,12.65,95.2,95.054,6.0]
[1646064942572,46.73894695,95.198,95.054,6.0]
[1646064942771,1.75190298,95.197,95.055,167.25]
[1646064943272,1.75190298,95.197,95.056,2.63246111]
[1646064944172,1.75190298,95.197,95.05,115.3009]
[1646064944576,106.35190298,95.197,95.05,115.3009]
[1646064944774,21.53139078,95.196,95.05,115.3009]
[1646064944974,104.6,95.195,95.05,115.3009]
[1646064945176,104.6,95.179,95.05,115.3009]
[1646064945379,104.6,95.177,95.05,115.3009]
[1646064945673,1.42302365,95.176,95.05,115.3009]
[1646064945874,18.11397221,95.176,95.05,115.3009]
[1646064946175,37.90893131,95.175,95.05,115.3009]
[1646064946374,12.65,95.16,95.05,115.3009]
[1646064946575,105.97244855,95.159,95.05,115.3009]
[1646064946775,1.40702566,95.158,95.05,115.3009]
[1646064947179,1.40702566,95.158,95.052,77.6597872]
[1646064947381,1.40702566,95.158,95.052,74.9117]
[1646064948076,18.08930756,95.158,95.052,74.9117]
[1646064948279,1.54327633,95.157,95.052,74.9117]
[1646064948977,16.6822819,95.156,95.052,74.9117]
[1646064949179,1.83988049,95.155,95.052,74.9117]
[1646064950289,104.26883357,95.159,95.053,3.04306922]
[1646064950481,1.80292313,95.158,95.053,3.04306922]
[1646064950888,104.26883357,95.159,95.052,74.9117]
[1646064950889,48.466,95.159,95.057,104.6]
[1646064951081,48.466,95.159,95.068,62.65]
[1646064951279,48.466,95.159,95.07,12.65]
[1646064951483,1.6464086,95.215,95.072,2.8800969]
[1646064951680,48.6111,95.214,95.054,2.48221734]
[1646064951880,50.54188461,95.173,95.054,2.48221734]
[1646064952080,50.54188461,95.173,95.06,12.65]
[1646064952280,50.54188461,95.173,95.062,2.55108279]
[1646064953582,49.72425569,95.172,95.053,2.63457374]
[1646064953783,1.50409522,95.171,95.053,2.63457374]
[1646064954082,1.52711044,95.169,95.053,2.63457374]
[1646064954284,1.52711044,95.169,95.052,74.9117]
[1646064955784,1.52711044,95.169,95.053,3.12137996]
[1646064955985,48.2273,95.172,95.054,2.35704788]
[1646064956385,1.59774046,95.171,95.054,2.35704788]
[1646064956586,1.59774046,95.171,95.052,74.9117]
[1646064956787,1.39373854,95.159,95.052,74.9117]
[1646064956986,106.25414285,95.157,95.052,74.9117]
[1646064957185,104.6,95.157,95.052,74.9117]
[1646064957387,17.12944447,95.156,95.052,74.9117]
[1646064957691,1.61044188,95.155,95.052,74.9117]
[1646064957885,26.66081527,95.155,95.052,74.9117]
[1646064958086,57.58708727,95.154,95.052,74.9117]
[1646064958307,105.96482812,95.153,95.052,74.9117]
[1646064958489,56.67289309,95.139,95.052,74.9117]
[1646064958786,1.5670632,95.138,95.052,74.9117]
[1646064959486,1.37359493,95.136,95.052,74.9117]
[1646064959688,54.96160391,95.139,95.052,74.9117]
[1646064960289,54.96160391,95.139,95.053,2.62690204]
[1646064960487,16.7535975,95.159,95.053,2.62690204]
[1646064960688,12.65,95.17,95.053,2.62690204]
[1646064960886,1.57491925,95.171,95.054,2.71554214]
[1646064961089,25.2856913,95.177,95.055,104.6]
[1646064961286,25.2856913,95.177,95.061,62.65]
[1646064961486,45.25462357,95.157,95.062,2.3174217]
[1646064961716,1.53443049,95.19,95.061,2.30962281]
[1646064961888,8.56851642,95.168,95.06,12.65]
[1646064962087,8.56851642,95.168,95.061,104.6]
[1646064962287,8.56851642,95.168,95.062,2.42200349]
[1646064962692,55.05466037,95.157,95.061,2.26122835]
[1646064962891,55.05466037,95.157,95.053,2.88610665]
[1646064963090,16.71717488,95.156,95.053,2.88610665]
[1646064963291,1.74522921,95.155,95.052,77.35689069]
[1646064963489,16.71717488,95.156,95.053,2.29214049]
[1646064963693,25.32211392,95.154,95.053,2.29214049]
[1646064964088,25.32211392,95.154,95.052,74.9117]
[1646064964292,1.59326618,95.153,95.052,74.9117]
[1646064964490,12.65,95.15,95.052,74.9117]
[1646064964691,1.6031236,95.149,95.052,74.9117]
[1646064964994,41.55483055,95.149,95.052,74.9117]
[1646064965191,1.35021231,95.148,95.052,74.9117]
[1646064965394,51.11365715,95.148,95.052,74.9117]
[1646064965591,50.13058353,95.147,95.052,74.9117]
[1646064965814,1.73105326,95.146,95.052,74.9117]
[1646064965992,34.35746526,95.146,95.052,74.9117]
[1646064966194,18.4961989,95.145,95.052,74.9117]
[1646064966393,12.65,95.13,95.052,74.9117]
[1646064966593,1.45344561,95.129,95.052,74.9117]
[1646064966802,49.56982678,95.128,95.052,74.9117]
[1646064966993,1.58037179,95.127,95.052,74.9117]
[1646064967195,50.31772658,95.127,95.052,74.9117]
[1646064967394,24.87552413,95.126,95.052,74.9117]
[1646064967694,1.84705037,95.125,95.052,74.9117]
[1646064967897,12.65,95.11,95.052,74.9117]
[1646064968094,1.85729911,95.109,95.052,74.9117]
[1646064968594,17.17345546,95.108,95.052,74.9117]
[1646064968795,96.7623712,95.107,94.951,3.01786674]
[1646064968994,1.57612853,95.106,94.985,44.00291551]
[1646064969197,36.0576849,95.106,94.985,44.00291551]
[1646064969396,24.97886711,95.105,94.986,2.69933885]
[1646064969596,1.56990661,95.104,94.985,44.00291551]
[1646064969998,12.65,95.09,94.961,3.04959449]
[1646064970199,1.35945485,95.089,94.949,2.86455412]
[1646064970399,49.98014615,95.089,94.927,2.27599169]
[1646064970599,1.58109175,95.088,94.927,2.27599169]
[1646064970801,50.94579519,95.088,94.927,2.27599169]
[1646064970999,35.04934266,95.087,94.929,2.5782776]
[1646064971202,1.40218691,95.085,94.929,2.5782776]
[1646064971699,1.7200613,95.069,94.929,2.5782776]
[1646064971900,104.6,95.059,94.896,16.058]
[1646064972104,29.74066855,95.058,94.897,46.32215952]
[1646064972299,1.47446948,95.057,94.898,2.85546655]
[1646064972700,20.46792494,95.057,94.898,2.85546655]
[1646064972904,38.23362216,95.056,94.897,43.80476232]
[1646064973100,1.35601378,95.055,94.897,43.80476232]
[1646064973327,142.6717202,95.055,94.897,43.80476232]
[1646064973504,104.6,95.049,94.897,43.80476232]
[1646064973706,104.6,95.039,94.897,43.80476232]
[1646064974005,104.6,95.037,94.875,75.8264]
[1646064974205,25.96827386,95.036,94.853,0.52692774]
[1646064974406,104.6,95.019,94.853,0.52692774]
[1646064974606,158.15,95.0,94.853,0.52692774]
[1646064974809,12.65,94.99,94.853,0.52692774]